fUST/lending_fUST_20250302
["ID","MTS","AMOUNT","RATE_DAILY","PERIOD"]
[355020443,1740870634063,-500.0,0.00024657,2]
[355020445,1740870634075,-500.0,0.00024657,2]
[355020447,1740870634089,-509.37184616,0.00024657,2]
[355020448,1740870634103,-500.0,0.00024657,2]
[355020449,1740870634117,-500.0,0.00024657,2]
[355020450,1740870634130,-545.56,0.00024657,2]
[355020451,1740870634142,-500.0,0.00024657,2]
[355020452,1740870634157,-500.0,0.00024657,2]
[355020453,1740870634169,-500.0,0.00024657,2]
[355020454,1740870634182,-500.0,0.00024657,2]
[355020455,1740870634194,-500.0,0.00024657,2]
[355020456,1740870634206,-500.0,0.00024657,2]
[355020457,1740870634218,-500.0,0.00024657,2]
[355020459,1740870634229,-500.0,0.00024657,2]
[355020461,1740870634241,-601.67,0.00024657,2]
[355020463,1740870634252,-500.0,0.00024657,2]
[355020465,1740870634264,-500.0,0.00024657,2]
[355020467,1740870634275,-751.44,0.00024657,2]
[355020469,1740870634286,-500.0,0.00024657,2]
[355020471,1740870634297,-1828.32,0.00024657,2]
[355020474,1740870634307,-584.74,0.00024657,2]
[355020476,1740870634319,-500.0,0.00024657,2]
[355020478,1740870634330,-500.0,0.00024657,2]
[355020480,1740870634345,-500.0,0.00024657,2]
[355020482,1740870634356,-694.91,0.00024657,2]
[355020484,1740870634367,-769.13,0.00024657,2]
[355020486,1740870634378,-500.0,0.00024657,2]
[355020488,1740870634389,-500.0,0.00024657,2]
[355020490,1740870634401,-500.0,0.00024657,2]
[355020492,1740870634412,-500.0,0.00024657,2]
[355020494,1740870634422,-500.0,0.00024657,2]
[355020496,1740870634433,-500.0,0.00024657,2]
[355020498,1740870634444,-500.0,0.00024657,2]
[355020500,1740870634455,-500.0,0.00024657,2]
[355020502,1740870634466,-585.22,0.00024657,2]
[355020504,1740870634476,-1154.84,0.00024657,2]
[355020506,1740870634487,-539.75,0.00024657,2]
[355020508,1740870634497,-500.0,0.00024657,2]
[355020510,1740870634508,-500.0,0.00024657,2]
[355020512,1740870634519,-500.0,0.00024657,2]
[355020514,1740870634530,-500.0,0.00024657,2]
[355020516,1740870634540,-500.0,0.00024657,2]
[355020518,1740870634550,-500.0,0.00024657,2]
[355020520,1740870634560,-224.39593508,0.00024657,2]
[355020522,1740870634570,-500.0,0.00024657,2]
[355020524,1740870634581,-500.0,0.00024657,2]
[355020527,1740870634595,-500.0,0.00024657,2]
[355020529,1740870634605,-500.0,0.00024657,2]
[355020531,1740870634616,-740.07,0.00024657,2]
[355020533,1740870634632,-1196.27,0.00024657,2]
[355020535,1740870634642,-207.1529511,0.00024657,2]
[355020537,1740870634654,-500.0,0.00024657,2]
[355020539,1740870634665,-1767.77,0.00024657,2]
[355020541,1740870634676,-500.0,0.00024657,2]
[355020543,1740870634686,-500.0,0.00024657,2]
[355020545,1740870634697,-200.0,0.00024657,2]
[355020547,1740870634707,-500.0,0.00024657,2]
[355020549,1740870634723,-1601.41,0.00024657,2]
[355020551,1740870634733,-500.0,0.00024657,2]
[355020553,1740870634744,-1634.4,0.00024657,2]
[355020555,1740870634754,-500.0,0.00024657,2]
[355020557,1740870634764,-500.0,0.00024657,2]
[355020559,1740870634774,-500.0,0.00024657,2]
[355020561,1740870634784,-500.0,0.00024657,2]
[355020563,1740870634795,-500.0,0.00024657,2]
[355020565,1740870634805,-500.0,0.00024657,2]
[355020567,1740870634815,-1035.78,0.00024657,2]
[355020569,1740870634826,-587.99,0.00024657,2]
[355020571,1740870634837,-500.0,0.00024657,2]
[355020573,1740870634847,-500.0,0.00024657,2]
[355020575,1740870634857,-500.0,0.00024657,2]
[355020577,1740870634868,-500.0,0.00024657,2]
[355020579,1740870634878,-500.0,0.00024657,2]
[355020581,1740870634889,-731.11,0.00024657,2]
[355020584,1740870634900,-500.0,0.00024657,2]
[355020586,1740870634910,-500.0,0.00024657,2]
[355020588,1740870634919,-733.64,0.00024657,2]
[355020590,1740870634929,-502.48358564,0.00024657,2]
[355020592,1740870634939,-500.0,0.00024657,2]
[355020594,1740870634949,-500.0,0.00024657,2]
[355020596,1740870634959,-527.62097271,0.00024657,2]
[355020598,1740870634972,-945.5,0.00024657,2]
[355020600,1740870634981,-614.01,0.00024657,2]
[355020602,1740870634991,-500.0,0.00024657,2]
[355020604,1740870635002,-500.0,0.00024657,2]
[355020606,1740870635012,-500.0,0.00024657,2]
[355020608,1740870635023,-500.0,0.00024657,2]
[355020610,1740870635033,-500.0,0.00024657,2]
[355020612,1740870635042,-500.0,0.00024657,2]
[355020614,1740870635052,-500.0,0.00024657,2]
[355020616,1740870635064,-1739.27,0.00024657,2]
[355020618,1740870635076,-500.0,0.00024657,2]
[355020620,1740870635086,-500.0,0.00024657,2]
[355020622,1740870635096,-500.0,0.00024657,2]
[355020624,1740870635106,-500.0,0.00024657,2]
[355020626,1740870635117,-500.0,0.00024657,2]
[355020628,1740870635127,-500.0,0.00024657,2]
[355020630,1740870635137,-500.0,0.00024657,2]
[355020633,1740870635148,-500.0,0.00024657,2]
[355020635,1740870635159,-500.0,0.00024657,2]
[355020637,1740870635169,-500.0,0.00024657,2]
[355020639,1740870635179,-500.0,0.00024657,2]
[355020641,1740870635189,-1100.97,0.00024657,2]
[355020643,1740870635199,-682.31,0.00024657,2]
[355020645,1740870635209,-500.0,0.00024657,2]
[355020647,1740870635219,-876.37,0.00024657,2]
[355020649,1740870635230,-500.0,0.00024657,2]
[355020651,1740870635240,-500.0,0.00024657,2]
[355020653,1740870635250,-500.0,0.00024657,2]
[355020655,1740870635260,-500.0,0.00024657,2]
[355020657,1740870635270,-500.0,0.00024657,2]
[355020659,1740870635280,-274.63443474,0.00024657,2]
[355020661,1740870635290,-500.0,0.00024657,2]
[355020663,1740870635300,-500.0,0.00024657,2]
[355020665,1740870635310,-500.0,0.00024657,2]
[355020667,1740870635322,-500.0,0.00024657,2]
[355020669,1740870635332,-1018.17,0.00024657,2]
[355020671,1740870635345,-593.78,0.00024657,2]
[355020673,1740870635355,-500.0,0.00024657,2]
[355020676,1740870635366,-500.0,0.00024657,2]
[355020678,1740870635376,-511.05097749,0.00024657,2]
[355020680,1740870635386,-2821.01,0.00024657,2]
[355020682,1740870635397,-579.8,0.00024657,2]
[355020684,1740870635407,-500.0,0.00024657,2]
[355020686,1740870635417,-500.0,0.00024657,2]
[355020687,1740870635427,-500.0,0.00024657,2]
[355020690,1740870635436,-500.0,0.00024657,2]
[355020692,1740870635446,-500.0,0.00024657,2]
[355020694,1740870635456,-967.99,0.00024657,2]
[355020696,1740870635467,-500.0,0.00024657,2]
[355020698,1740870635476,-500.0,0.00024657,2]
[355020700,1740870635487,-500.0,0.00024657,2]
[355020701,1740870635497,-500.0,0.00024657,2]
[355020703,1740870635507,-1987.2,0.00024657,2]
[355020706,1740870635517,-500.0,0.00024657,2]
[355020708,1740870635527,-1225.75,0.00024657,2]
[355020710,1740870635537,-500.0,0.00024657,2]
[355020712,1740870635547,-500.0,0.00024657,2]
[355020714,1740870635557,-500.0,0.00024657,2]
[355020716,1740870635568,-1992.1,0.00024657,2]
[355020718,1740870635578,-500.0,0.00024657,2]
[355020720,1740870635589,-523.00042399,0.00024657,2]
[355020722,1740870635600,-500.0,0.00024657,2]
[355020724,1740870635611,-500.0,0.00024657,2]
[355020726,1740870635621,-500.0,0.00024657,2]
[355020728,1740870635631,-500.0,0.00024657,2]
[355020730,1740870635641,-500.0,0.00024657,2]
[355020732,1740870635652,-2334.9,0.00024657,2]
[355020734,1740870635663,-518.7,0.00024657,2]
[355020736,1740870635672,-500.0,0.00024657,2]
[355020738,1740870635683,-502.61749203,0.00024657,2]
[355020739,1740870635693,-500.0,0.00024657,2]
[355020742,1740870635703,-500.0,0.00024657,2]
[355020744,1740870635715,-1315.32,0.00024657,2]
[355020746,1740870635725,-500.0,0.00024657,2]
[355020748,1740870635735,-751.16,0.00024657,2]
[355020750,1740870635745,-535.43,0.00024657,2]
[355020752,1740870635756,-1096.89,0.00024657,2]
[355020754,1740870635765,-500.0,0.00024657,2]
[355020756,1740870635775,-500.0,0.00024657,2]
[355020758,1740870635786,-525.43,0.00024657,2]
[355020760,1740870635796,-500.0,0.00024657,2]
[355020762,1740870635807,-500.0,0.00024657,2]
[355020764,1740870635817,-1276.17,0.00024657,2]
[355020766,1740870635827,-500.0,0.00024657,2]
[355020768,1740870635839,-500.0,0.00024657,2]
[355020770,1740870635850,-500.0,0.00024657,2]
[355020772,1740870635860,-500.0,0.00024657,2]
[355020774,1740870635870,-500.0,0.00024657,2]
[355020776,1740870635880,-1731.65,0.00024657,2]
[355020778,1740870635890,-395.2626657,0.00024657,2]
[355020780,1740870635901,-1086.64,0.00024657,2]
[355020782,1740870635911,-500.0,0.00024657,2]
[355020784,1740870635920,-500.0,0.00024657,2]
[355020786,1740870635930,-500.0,0.00024657,2]
[355020788,1740870635940,-500.0,0.00024657,2]
[355020790,1740870635950,-500.0,0.00024657,2]
[355020792,1740870635959,-500.0,0.00024657,2]
[355020795,1740870635970,-500.0,0.00024657,2]
[355020797,1740870635980,-516.57229199,0.00024657,2]
[355020799,1740870635989,-500.0,0.00024657,2]
[355020801,1740870636000,-616.87498064,0.00024657,2]
[355020803,1740870636010,-500.0,0.00024657,2]
[355020805,1740870636020,-986.8,0.00024657,2]
[355020807,1740870636030,-500.0,0.00024657,2]
[355020809,1740870636039,-590.91949038,0.00024657,2]
[355020811,1740870636050,-668.85,0.00024657,2]
[355020813,1740870636060,-500.0,0.00024657,2]
[355020815,1740870636075,-627.43,0.00024657,2]
[355020817,1740870636084,-500.0,0.00024657,2]
[355020819,1740870636096,-500.0,0.00024657,2]
[355020822,1740870636107,-500.0,0.00024657,2]
[355020824,1740870636117,-500.0,0.00024657,2]
[355020825,1740870636127,-1437.16,0.00024657,2]
[355020828,1740870636139,-905.37,0.00024657,2]
[355020829,1740870636149,-500.0,0.00024657,2]
[355020832,1740870636159,-2690.3,0.00024657,2]
[355020833,1740870636169,-500.0,0.00024657,2]
[355020836,1740870636179,-500.0,0.00024657,2]
[355020838,1740870636189,-586.8,0.00024657,2]
[355020840,1740870636198,-500.0,0.00024657,2]
[355020842,1740870636208,-500.0,0.00024657,2]
[355020844,1740870636218,-500.0,0.00024657,2]
[355020846,1740870636227,-500.0,0.00024657,2]
[355020848,1740870636237,-500.0,0.00024657,2]
[355020850,1740870636248,-835.13,0.00024657,2]
[355020852,1740870636258,-398.54965519,0.00024657,2]
[355020854,1740870636268,-500.0,0.00024657,2]
[355020856,1740870636278,-500.0,0.00024657,2]
[355020858,1740870636288,-500.0,0.00024657,2]
[355020860,1740870636297,-500.0,0.00024657,2]
[355020862,1740870636307,-500.0,0.00024657,2]
[355020863,1740870636317,-500.0,0.00024657,2]
[355020864,1740870636327,-500.0,0.00024657,2]
[355020865,1740870636337,-500.0,0.00024657,2]
[355020866,1740870636347,-925.29,0.00024657,2]
[355020867,1740870636357,-520.65,0.00024657,2]
[355020868,1740870636367,-500.0,0.00024657,2]
[355020869,1740870636378,-500.0,0.00024657,2]
[355020870,1740870636387,-1064.69,0.00024657,2]
[355020871,1740870636398,-1065.63,0.00024657,2]
[355020872,1740870636408,-506.98,0.00024657,2]
[355020873,1740870636418,-500.0,0.00024657,2]
[355020874,1740870636428,-500.0,0.00024657,2]
[355020876,1740870636438,-1847.18,0.00024657,2]
[355020877,1740870636448,-500.0,0.00024657,2]
[355020879,1740870636458,-500.0,0.00024657,2]
[355020882,1740870636468,-3051.13,0.00024657,2]
[355020884,1740870636478,-1533.16,0.00024657,2]
[355020886,1740870636487,-500.0,0.00024657,2]
[355020888,1740870636498,-500.0,0.00024657,2]
[355020890,1740870636508,-1644.26,0.00024657,2]
[355020892,1740870636517,-500.0,0.00024657,2]
[355020894,1740870636528,-500.0,0.00024657,2]
[355020896,1740870636538,-500.0,0.00024657,2]
[355020898,1740870636549,-1895.12,0.00024657,2]
[355020900,1740870636559,-445.23001802,0.00024657,2]
[355020902,1740870636569,-500.0,0.00024657,2]
[355020904,1740870636579,-500.0,0.00024657,2]
[355020906,1740870636590,-500.0,0.00024657,2]
[355020908,1740870636600,-500.0,0.00024657,2]
[355020910,1740870636610,-95648.20870443,0.00024657,2]
[355020914,1740870636638,-20989.63016435,0.00024657,2]
[355021051,1740870637939,-500.0,0.00024105,2]
[355021053,1740870637948,-500.0,0.00024105,2]
[355021055,1740870637958,-500.0,0.00024105,2]
[355021057,1740870637968,-500.0,0.00024105,2]
[355021059,1740870637978,-500.0,0.00024105,2]
[355021061,1740870637987,-500.0,0.00024105,2]
[355021063,1740870637998,-500.0,0.00024105,2]
[355021066,1740870638007,-500.0,0.00024105,2]
[355021068,1740870638017,-500.0,0.00024105,2]
[355021069,1740870638027,-500.0,0.00024105,2]
[355021071,1740870638036,-500.0,0.00024105,2]
[355021074,1740870638046,-500.0,0.00024105,2]
[355021076,1740870638056,-500.0,0.00024105,2]
[355021078,1740870638070,-500.0,0.00024105,2]
[355021080,1740870638080,-500.0,0.00024105,2]
[355021082,1740870638089,-500.0,0.00024105,2]
[355021084,1740870638099,-500.0,0.00024105,2]
[355021086,1740870638110,-500.0,0.00024105,2]
[355021087,1740870638119,-500.0,0.00024105,2]
[355021090,1740870638129,-500.0,0.00024105,2]
[355021092,1740870638140,-500.0,0.00024105,2]
[355021094,1740870638150,-500.0,0.00024105,2]
[355021096,1740870638160,-500.0,0.00024105,2]
[355021098,1740870638170,-500.0,0.00024105,2]
[355021100,1740870638179,-500.0,0.00024105,2]
[355021102,1740870638189,-65377.82113122,0.00024657,2]
[355021104,1740870638198,-702.74,0.00024657,2]
[355021105,1740870638208,-1458.25,0.00024657,2]
[355021107,1740870638217,-500.0,0.00024657,2]
[355021110,1740870638227,-500.0,0.00024657,2]
[355021112,1740870638237,-500.0,0.00024657,2]
[355021113,1740870638246,-500.0,0.00024657,2]
[355021116,1740870638256,-773.03,0.00024657,2]
[355021117,1740870638266,-504.51657921,0.00024657,2]
[355021119,1740870638275,-686.05,0.00024657,2]
[355021122,1740870638285,-500.0,0.00024657,2]
[355021123,1740870638295,-3341.01,0.00024657,2]
[355021124,1740870638304,-1999.52,0.00024657,2]
[355021125,1740870638314,-500.0,0.00024657,2]
[355021126,1740870638323,-815.6,0.00024657,2]
[355021127,1740870638333,-1077.39,0.00024657,2]
[355021128,1740870638342,-773.04,0.00024657,2]
[355021129,1740870638351,-2072.06,0.00024657,2]
[355021130,1740870638360,-500.0,0.00024657,2]
[355021131,1740870638371,-500.0,0.00024657,2]
[355021132,1740870638380,-3837.64,0.00024657,2]
[355021133,1740870638389,-500.0,0.00024657,2]
[355021134,1740870638398,-500.0,0.00024657,2]
[355021135,1740870638408,-2186.35,0.00024657,2]
[355021136,1740870638418,-1293.42,0.00024657,2]
[355021138,1740870638427,-1987.36,0.00024657,2]
[355021140,1740870638436,-515.85,0.00024657,2]
[355021142,1740870638446,-500.0,0.00024657,2]
[355021144,1740870638455,-9712.4,0.00024657,2]
[355021146,1740870638465,-672.26,0.00024657,2]
[355021148,1740870638474,-500.0,0.00024657,2]
[355021150,1740870638484,-5285.05,0.00024657,2]
[355021152,1740870638495,-697.06,0.00024657,2]
[355021154,1740870638505,-500.0,0.00024657,2]
[355021156,1740870638515,-1056.45,0.00024657,2]
[355021158,1740870638525,-1852.75,0.00024657,2]
[355021160,1740870638536,-500.0,0.00024657,2]
[355021162,1740870638547,-500.0,0.00024657,2]
[355021164,1740870638556,-1149.63,0.00024657,2]
[355021166,1740870638566,-500.0,0.00024657,2]
[355021169,1740870638576,-2573.98,0.00024657,2]
[355021171,1740870638586,-1040.43,0.00024657,2]
[355021173,1740870638598,-500.0,0.00024657,2]
[355021175,1740870638607,-500.0,0.00024657,2]
[355021177,1740870638617,-1521.06,0.00024657,2]
[355021179,1740870638627,-500.0,0.00024657,2]
[355021181,1740870638637,-245.78100725,0.00024657,2]
[355021183,1740870638647,-500.0,0.00024657,2]
[355021185,1740870638656,-504.95603551,0.00024657,2]
[355021187,1740870638666,-500.0,0.00024657,2]
[355021189,1740870638676,-500.0,0.00024657,2]
[355021190,1740870638686,-671.99,0.00024657,2]
[355021192,1740870638696,-718.51,0.00024657,2]
[355021194,1740870638706,-1402.62,0.00024657,2]
[355021196,1740870638716,-4878.57,0.00024657,2]
[355021198,1740870638725,-1869.94,0.00024657,2]
[355021201,1740870638735,-500.0,0.00024657,2]
[355021202,1740870638744,-500.0,0.00024657,2]
[355021204,1740870638754,-1079.29,0.00024657,2]
[355021206,1740870638763,-1424.03,0.00024657,2]
[355021208,1740870638773,-502.19,0.00024657,2]
[355021210,1740870638782,-608.93694024,0.00024657,2]
[355021212,1740870638792,-500.0,0.00024657,2]
[355021214,1740870638801,-500.0,0.00024657,2]
[355021216,1740870638811,-500.0,0.00024657,2]
[355021219,1740870638821,-500.0,0.00024657,2]
[355021221,1740870638832,-500.0,0.00024657,2]
[355021223,1740870638841,-592.94723038,0.00024657,2]
[355021224,1740870638850,-500.0,0.00024657,2]
[355021226,1740870638860,-536.96,0.00024657,2]
[355021228,1740870638869,-500.0,0.00024657,2]
[355021230,1740870638880,-500.0,0.00024657,2]
[355021232,1740870638889,-500.0,0.00024657,2]
[355021234,1740870638899,-11014.13,0.00024657,2]
[355021236,1740870638909,-500.0,0.00024657,2]
[355021238,1740870638919,-345.33652339,0.00024657,2]
[355021240,1740870638928,-624.28969608,0.00024657,2]
[355021242,1740870638938,-500.0,0.00024657,2]
[355021244,1740870638947,-513.88348399,0.00024657,2]
[355021246,1740870638957,-733.22,0.00024657,2]
[355021248,1740870638967,-500.0,0.00024657,2]
[355021250,1740870638976,-500.0,0.00024657,2]
[355021252,1740870638986,-745.91,0.00024657,2]
[355021254,1740870638995,-575.46,0.00024657,2]
[355021256,1740870639005,-1262.49,0.00024657,2]
[355021258,1740870639015,-996.02,0.00024657,2]
[355021260,1740870639024,-500.0,0.00024657,2]
[355021262,1740870639034,-500.0,0.00024657,2]
[355021264,1740870639043,-500.0,0.00024657,2]
[355021266,1740870639053,-500.0,0.00024657,2]
[355021268,1740870639063,-500.0,0.00024657,2]
[355021270,1740870639077,-500.0,0.00024657,2]
[355021272,1740870639086,-14163.77,0.00024657,2]
[355021274,1740870639097,-823.26,0.00024657,2]
[355021276,1740870639107,-500.0,0.00024657,2]
[355021278,1740870639117,-500.0,0.00024657,2]
[355021280,1740870639127,-500.0,0.00024657,2]
[355021282,1740870639137,-500.0,0.00024657,2]
[355021284,1740870639147,-906.6,0.00024657,2]
[355021286,1740870639157,-500.0,0.00024657,2]
[355021289,1740870639166,-500.0,0.00024657,2]
[355021291,1740870639175,-500.0,0.00024657,2]
[355021294,1740870639184,-1337.37,0.00024657,2]
[355021297,1740870639193,-500.0,0.00024657,2]
[355021300,1740870639203,-500.0,0.00024657,2]
[355021303,1740870639213,-500.0,0.00024657,2]
[355021306,1740870639222,-2970.61,0.00024657,2]
[355021308,1740870639233,-500.0,0.00024657,2]
[355021310,1740870639243,-500.0,0.00024657,2]
[355021312,1740870639253,-500.0,0.00024657,2]
[355021314,1740870639263,-353.42112393,0.00024657,2]
[355021316,1740870639272,-500.0,0.00024657,2]
[355021318,1740870639282,-500.0,0.00024657,2]
[355021320,1740870639292,-31732.4,0.00024657,2]
[355021322,1740870639302,-6882.34,0.00024657,2]
[355021324,1740870639311,-508.18433206,0.00024657,2]
[355021326,1740870639321,-500.0,0.00024657,2]
[355021328,1740870639331,-1051.16,0.00024657,5]
[355021330,1740870639341,-918.39,0.00024657,2]
[355021332,1740870639351,-734.78,0.00024657,2]
[355021334,1740870639361,-1432.56,0.00024657,2]
[355021336,1740870639370,-500.0,0.00024657,2]
[355021338,1740870639379,-500.0,0.00024657,2]
[355021340,1740870639389,-500.0,0.00024657,2]
[355021343,1740870639399,-500.0,0.00024657,2]
[355021345,1740870639409,-522.84,0.00024657,2]
[355021347,1740870639419,-500.0,0.00024657,2]
[355021349,1740870639428,-6187.08,0.00024657,2]
[355021352,1740870639439,-500.0,0.00024657,2]
[355021355,1740870639449,-4420.52,0.00024657,2]
[355021357,1740870639459,-500.0,0.00024657,2]
[355021359,1740870639469,-1384.87,0.00024657,2]
[355021361,1740870639478,-533.52185495,0.00024657,2]
[355021363,1740870639487,-2065.79,0.00024657,2]
[355021365,1740870639497,-500.0,0.00024657,2]
[355021367,1740870639507,-500.0,0.00024657,2]
[355021369,1740870639517,-500.0,0.00024657,2]
[355021371,1740870639527,-500.0,0.00024657,2]
[355021373,1740870639538,-192.21601703,0.00024657,2]
[355021375,1740870639548,-500.0,0.00024657,2]
[355021377,1740870639558,-500.0,0.00024657,2]
[355021379,1740870639568,-1110.35,0.00024657,2]
[355021381,1740870639578,-789.62,0.00024657,2]
[355021383,1740870639588,-500.0,0.00024657,2]
[355021385,1740870639599,-500.0,0.00024657,2]
[355021387,1740870639608,-500.0,0.00024657,2]
[355021389,1740870639618,-2192.19,0.00024657,2]
[355021390,1740870639628,-500.0,0.00024657,2]
[355021393,1740870639639,-500.0,0.00024657,2]
[355021395,1740870639649,-510.43424536,0.00024657,2]
[355021396,1740870639659,-1761.04,0.00024657,2]
[355021399,1740870639669,-500.0,0.00024657,2]
[355021400,1740870639679,-500.0,0.00024657,2]
[355021403,1740870639690,-500.0,0.00024657,2]
[355021405,1740870639700,-500.0,0.00024657,2]
[355021406,1740870639710,-732.95,0.00024657,2]
[355021408,1740870639721,-3403.32,0.00024657,2]
[355021410,1740870639731,-500.0,0.00024657,2]
[355021412,1740870639742,-500.0,0.00024657,2]
[355021414,1740870639752,-161.76926756,0.00024657,2]
[355021416,1740870639762,-500.0,0.00024657,2]
[355021418,1740870639772,-1287.49,0.00024657,2]
[355021420,1740870639782,-500.0,0.00024657,2]
[355021422,1740870639793,-500.0,0.00024657,2]
[355021424,1740870639804,-500.0,0.00024657,2]
[355021426,1740870639814,-500.0,0.00024657,2]
[355021428,1740870639824,-500.0,0.00024657,2]
[355021430,1740870639834,-973.27,0.00024657,2]
[355021432,1740870639844,-500.0,0.00024657,2]
[355021434,1740870639855,-500.0,0.00024657,2]
[355021436,1740870639866,-526.44,0.00024657,2]
[355021438,1740870639878,-500.0,0.00024657,2]
[355021440,1740870639889,-500.0,0.00024657,2]
[355021442,1740870639900,-13294.23,0.00024657,2]
[355021444,1740870639910,-500.0,0.00024657,2]
[355021446,1740870639920,-500.0,0.00024657,2]
[355021448,1740870639930,-500.0,0.00024657,2]
[355021451,1740870639940,-1045.55,0.00024657,2]
[355021452,1740870639951,-266.54341547,0.00024657,2]
[355021454,1740870639961,-500.0,0.00024657,2]
[355021457,1740870639972,-500.0,0.00024657,2]
[355021458,1740870639982,-500.0,0.00024657,2]
[355021460,1740870639992,-415.20473459,0.00024657,2]
[355021462,1740870640004,-500.0,0.00024657,2]
[355021465,1740870640014,-500.0,0.00024657,2]
[355021467,1740870640024,-500.0,0.00024657,2]
[355021469,1740870640035,-2955.9,0.00024657,2]
[355021471,1740870640046,-5424.54,0.00024657,2]
[355021473,1740870640056,-961.93,0.00024657,2]
[355021475,1740870640075,-500.0,0.00024657,2]
[355021477,1740870640097,-500.0,0.00024657,2]
[355021479,1740870640110,-500.0,0.00024657,2]
[355021481,1740870640120,-500.0,0.00024657,2]
[355021483,1740870640131,-500.0,0.00024657,2]
[355021485,1740870640141,-500.0,0.00024657,2]
[355021487,1740870640152,-500.0,0.00024657,2]
[355021489,1740870640163,-329.67957877,0.00024657,2]
[355021491,1740870640173,-500.0,0.00024657,2]
[355021493,1740870640183,-5511.86,0.00024657,2]
[355021494,1740870640194,-500.0,0.00024657,2]
[355021495,1740870640204,-500.0,0.00024657,2]
[355021496,1740870640214,-500.0,0.00024657,2]
[355021497,1740870640225,-500.0,0.00024657,2]
[355021498,1740870640235,-623.62,0.00024657,2]
[355021499,1740870640246,-500.0,0.00024657,2]
[355021500,1740870640256,-500.0,0.00024657,2]
[355021501,1740870640266,-500.0,0.00024657,2]
[355021502,1740870640276,-500.0,0.00024657,2]
[355021503,1740870640286,-500.0,0.00024657,2]
[355021504,1740870640297,-12441.67,0.00024657,2]
[355021506,1740870640307,-578.61,0.00024657,2]
[355021507,1740870640317,-500.0,0.00024657,2]
[355021509,1740870640327,-500.0,0.00024657,2]
[355021511,1740870640337,-500.0,0.00024657,2]
[355021513,1740870640348,-500.0,0.00024657,2]
[355021515,1740870640358,-500.0,0.00024657,2]
[355021517,1740870640368,-336.44272036,0.00024657,2]
[355021519,1740870640378,-500.0,0.00024657,2]
[355021520,1740870640388,-500.0,0.00024657,2]
[355021522,1740870640398,-500.0,0.00024657,2]
[355021524,1740870640408,-500.0,0.00024657,2]
[355021526,1740870640418,-500.0,0.00024673,2]
[355021529,1740870640428,-500.0,0.00024673,2]
[355021531,1740870640438,-387.20735709,0.00024673,2]
[355021533,1740870640449,-500.0,0.00024673,2]
[355021535,1740870640459,-500.0,0.00024673,2]
[355021537,1740870640469,-500.0,0.00024673,2]
[355021539,1740870640479,-500.0,0.00024673,2]
[355021541,1740870640490,-635.54991332,0.00024673,2]
[355021543,1740870640500,-500.0,0.00024673,2]
[355021544,1740870640510,-499.999999,0.00024673,2]
[355021546,1740870640520,-500.0,0.00024673,2]